fUST/lending_fUST_20250410
["ID","MTS","AMOUNT","RATE_DAILY","PERIOD"]
[357660637,1744290648408,-521.64,0.00016438,2]
[357660638,1744290648417,-500.0,0.00016438,2]
[357660639,1744290648427,-500.0,0.00016438,2]
[357660640,1744290648437,-1540.16,0.00016438,2]
[357660641,1744290648448,-500.0,0.00016438,2]
[357660642,1744290648460,-500.0,0.00016438,2]
[357660643,1744290648471,-500.0,0.00016438,2]
[357660644,1744290648483,-500.0,0.00016438,2]
[357660645,1744290648493,-569.84,0.00016438,2]
[357660646,1744290648503,-1255.94,0.00016438,2]
[357660647,1744290648513,-500.0,0.00016438,2]
[357660648,1744290648524,-1600.59,0.00016438,2]
[357660649,1744290648534,-500.0,0.00016438,2]
[357660650,1744290648544,-500.0,0.00016438,2]
[357660651,1744290648554,-151.0,0.00016438,2]
[357660652,1744290648564,-151.0,0.00016438,2]
[357660653,1744290648574,-500.0,0.00016438,2]
[357660654,1744290648585,-151.0,0.00016438,2]
[357660655,1744290648595,-151.0,0.00016438,2]
[357660656,1744290648606,-151.0,0.00016438,2]
[357660657,1744290648616,-500.0,0.00016438,2]
[357660658,1744290648627,-163.26446534,0.00016438,2]
[357660659,1744290648637,-500.0,0.00016438,2]
[357660660,1744290648647,-3712.78,0.00016438,2]
[357660661,1744290648658,-500.0,0.00016438,2]
[357660662,1744290648668,-1570.97,0.00016438,2]
[357660663,1744290648678,-500.0,0.00016438,2]
[357660664,1744290648688,-500.0,0.00016438,2]
[357660665,1744290648699,-539.03,0.00016438,2]
[357660666,1744290648709,-500.0,0.00016438,2]
[357660667,1744290648719,-814.31,0.00016438,2]
[357660668,1744290648729,-500.0,0.00016438,2]
[357660669,1744290648740,-500.0,0.00016438,2]
[357660670,1744290648750,-500.0,0.00016438,2]
[357660671,1744290648759,-761.89,0.00016438,2]
[357660672,1744290648769,-3095.04,0.00016438,2]
[357660673,1744290648779,-500.0,0.00016438,2]
[357660674,1744290648789,-500.0,0.00016438,2]
[357660675,1744290648799,-1142.35,0.00016438,2]
[357660676,1744290648809,-784.76,0.00016438,2]
[357660677,1744290648819,-500.0,0.00016438,2]
[357660678,1744290648829,-1402.73,0.00016438,2]
[357660679,1744290648840,-500.0,0.00016438,2]
[357660680,1744290648850,-500.0,0.00016438,2]
[357660681,1744290648861,-517.3229188,0.00016438,2]
[357660682,1744290648872,-500.0,0.00016438,2]
[357660683,1744290648883,-1002.05,0.00016438,2]
[357660684,1744290648895,-500.0,0.00016438,2]
[357660685,1744290648906,-500.0,0.00016438,2]
[357660686,1744290648918,-516.00601304,0.00016438,2]
[357660687,1744290648929,-1577.83,0.00016438,2]
[357660688,1744290648939,-500.0,0.00016438,2]
[357660689,1744290648950,-500.0,0.00016438,2]
[357660690,1744290648960,-500.0,0.00016438,2]
[357660691,1744290648971,-500.0,0.00016438,2]
[357660692,1744290648981,-2215.26,0.00016438,2]
[357660693,1744290648992,-500.0,0.00016438,2]
[357660694,1744290649002,-500.0,0.00016438,2]
[357660695,1744290649012,-500.0,0.00016438,2]
[357660696,1744290649023,-760.98,0.00016438,2]
[357660697,1744290649033,-135.5213497,0.00016438,2]
[357660698,1744290654121,464.49343383,0.00014941,2]
[357660699,1744290673402,-159.17044552,0.00015045,2]
[357660700,1744290678778,-118.41646848,0.00015045,2]
[357660701,1744290678802,-100.25244232,0.00015045,2]
[357660702,1744290701145,900.0,0.00013498,2]
[357660703,1744290701808,-177.33447168,0.00015045,2]
[357660704,1744290701832,-18.88895292,0.00015045,2]
[357660705,1744290702948,900.0,0.00014868,2]
[357660706,1744290722634,-196.22342467,0.00015045,2]
[357660707,1744290849646,-210.90978369,0.00015044,2]
[357660708,1744290851966,-180.41019164,0.00015044,2]
[357660709,1744290878751,180.0774333,0.00014303,2]
[357660711,1744291044670,4726.50392107,0.00014945,2]
[357660712,1744291048386,500.0,0.00014303,2]
[357660713,1744291255875,852.648733,0.00014808,2]
[357660714,1744291340261,159.1704455,0.00014659,2]
[357660743,1744291653675,430.4983712,0.00014808,2]
[357660744,1744291675220,24900.0,0.00014808,2]
[357660747,1744291686334,165.440988,0.00014926,2]
[357660748,1744291686558,165.440988,0.00014926,41]
[357660749,1744291686808,165.440988,0.00014926,80]
[357660750,1744291687037,165.440988,0.00014926,119]
[357660751,1744291733425,409.35396414,0.0001516,7]
[357660778,1744291779669,180.07923486,0.00014303,2]
[357660792,1744291832204,-225.005203,0.00015211,2]
[357660793,1744291832219,-157.93148628,0.0001525,2]
[357660794,1744291832232,-659.48896849,0.00015359,2]
[357660795,1744291832243,-300.0,0.00015457,2]
[357660796,1744291832254,-180.11615532,0.00015458,2]
[357660797,1744291832264,-164.06170969,0.00015458,2]
[357660798,1744291832274,-479.24791119,0.00015458,2]
[357660799,1744291832285,-827.09523721,0.00015458,2]
[357660800,1744291832296,-827.09523721,0.00015458,2]
[357660801,1744291832306,-827.09523721,0.00015458,2]
[357660802,1744291832317,-827.09523721,0.00015458,2]
[357660803,1744291832327,-827.09523721,0.00015458,2]
[357660804,1744291832338,-827.09523721,0.00015458,2]
[357660805,1744291832348,-827.09523721,0.00015458,2]
[357660806,1744291832359,-827.09523721,0.00015458,2]
[357660807,1744291832369,-827.09523721,0.00015458,2]
[357660808,1744291832380,-827.09523721,0.00015458,2]
[357660809,1744291832391,-827.09523721,0.00015458,2]
[357660810,1744291832401,-827.09523721,0.00015458,2]
[357660811,1744291832411,-827.09523721,0.00015458,2]
[357660812,1744291832421,-827.09523721,0.00015458,2]
[357660813,1744291832432,-827.09523721,0.00015458,2]
[357660814,1744291832442,-827.09523721,0.00015458,2]
[357660815,1744291832452,-827.09523721,0.00015458,2]
[357660816,1744291832462,-827.09523721,0.00015458,2]
[357660817,1744291832472,-827.09523721,0.00015458,2]
[357660818,1744291832483,-827.09523721,0.00015458,2]
[357660819,1744291832494,-827.09523721,0.00015458,2]
[357660820,1744291832504,-827.09523721,0.00015458,2]
[357660821,1744291832514,-827.09523721,0.00015458,2]
[357660822,1744291832525,-827.09523721,0.00015458,2]
[357660823,1744291832540,-827.09523721,0.00015458,2]
[357660824,1744291832551,-827.09523721,0.00015458,2]
[357660825,1744291832561,-827.09523721,0.00015458,2]
[357660826,1744291832571,-827.09523721,0.00015458,2]
[357660827,1744291832583,-827.09523721,0.00015458,2]
[357660828,1744291832593,-827.09523721,0.00015458,2]
[357660829,1744291832604,-827.09523721,0.00015458,2]
[357660830,1744291832616,-827.09523721,0.00015458,2]
[357660831,1744291832627,-827.09523721,0.00015458,2]
[357660832,1744291832637,-827.09523721,0.00015458,2]
[357660833,1744291832648,-827.09523721,0.00015458,2]
[357660834,1744291832658,-827.09523721,0.00015458,2]
[357660835,1744291832668,-827.09523721,0.00015458,2]
[357660836,1744291832678,-827.09523721,0.00015458,2]
[357660837,1744291832688,-827.09523721,0.00015458,2]
[357660838,1744291832698,-827.09523721,0.00015458,2]
[357660839,1744291832709,-827.09523721,0.00015458,2]
[357660840,1744291832720,-827.09523721,0.00015458,2]
[357660841,1744291832731,-827.09523721,0.00015458,2]
[357660842,1744291832742,-827.09523721,0.00015458,2]
[357660843,1744291832752,-827.09523721,0.00015458,2]
[357660844,1744291832763,-827.09523721,0.00015458,2]
[357660845,1744291832774,-827.09523721,0.00015458,2]
[357660846,1744291832784,-817.00870992,0.00015458,2]
[357660847,1744291832795,-817.00870992,0.00015458,2]
[357660848,1744291832805,-817.00870992,0.00015458,2]
[357660849,1744291832816,-817.00870992,0.00015458,2]
[357660850,1744291832831,-817.00870992,0.00015458,2]
[357660851,1744291832842,-817.00870992,0.00015458,2]
[357660852,1744291832852,-817.00870992,0.00015458,2]
[357660853,1744291832863,-817.00870992,0.00015458,2]
[357660854,1744291832874,-817.00870992,0.00015458,2]
[357660855,1744291832884,-817.00870992,0.00015458,2]
[357660856,1744291832895,-817.00870992,0.00015458,2]
[357660857,1744291832906,-817.00870992,0.00015458,2]
[357660858,1744291832916,-817.00870992,0.00015458,2]
[357660859,1744291832927,-817.00870992,0.00015458,2]
[357660860,1744291832938,-817.00870992,0.00015458,2]
[357660861,1744291832954,-817.00870992,0.00015458,2]
[357660862,1744291832964,-817.00870992,0.00015458,2]
[357660863,1744291832975,-817.00870992,0.00015458,2]
[357660864,1744291832987,-817.00870992,0.00015458,2]
[357660865,1744291832998,-817.00870992,0.00015458,2]
[357660866,1744291833009,-817.00870992,0.00015458,2]
[357660867,1744291833020,-817.00870992,0.00015458,2]
[357660868,1744291833031,-817.00870992,0.00015458,2]
[357660869,1744291833041,-817.00870992,0.00015458,2]
[357660870,1744291833052,-817.00870992,0.00015458,2]
[357660871,1744291833063,-817.00870992,0.00015458,2]
[357660872,1744291833073,-697.85428647,0.00015458,2]
[357660873,1744291833095,-119.15442345,0.00015458,2]
[357660874,1744291833107,-791.86998039,0.00015458,2]
[357660875,1744291833117,-791.86998039,0.00015458,2]
[357660876,1744291833128,-791.86998039,0.00015458,2]
[357660877,1744291833139,-791.86998039,0.00015458,2]
[357660878,1744291833151,-791.86998039,0.00015458,2]
[357660879,1744291833162,-791.86998039,0.00015458,2]
[357660880,1744291833173,-791.86998039,0.00015458,2]
[357660881,1744291833184,-791.86998039,0.00015458,2]
[357660882,1744291833196,-791.86998039,0.00015458,2]
[357660883,1744291833207,-791.86998039,0.00015458,2]
[357660884,1744291833218,-791.86998039,0.00015458,2]
[357660885,1744291833230,-791.86998039,0.00015458,2]
[357660886,1744291833242,-791.86998037,0.00015458,2]
[357660887,1744291833253,-49420.87663348,0.00015458,2]
[357660888,1744291833263,-159.099,0.00015769,2]
[357660889,1744291833275,-283.01152864,0.00015799,2]
[357660890,1744291833286,-189.4168026,0.00015944,2]
[357660891,1744291833296,-318.0,0.00016058,2]
[357660892,1744291833306,-2252.0,0.00016164,2]
[357660893,1744291833316,-401.0,0.00016164,2]
[357660894,1744291833327,-659.48896847,0.00016203,2]
[357660895,1744291833338,-900.0,0.00016238,2]
[357660896,1744291833348,-250.0,0.00016337,2]
[357660897,1744291833359,-631.0,0.000164,2]
[357660898,1744291833370,-200.0,0.00016428,2]
[357660899,1744291833381,-151.0,0.00016428,2]
[357660900,1744291833392,-500.0,0.00016438,2]
[357660901,1744291833402,-500.0,0.00016438,2]
[357660902,1744291833413,-500.0,0.00016438,2]
[357660903,1744291833424,-507.42974652,0.00016438,2]
[357660904,1744291833436,-500.0,0.00016438,2]
[357660905,1744291833447,-500.0,0.00016438,2]
[357660906,1744291833457,-500.0,0.00016438,2]
[357660907,1744291833468,-500.0,0.00016438,2]
[357660908,1744291833480,-500.0,0.00016438,2]
[357660909,1744291833491,-500.0,0.00016438,2]
[357660910,1744291833502,-500.0,0.00016438,2]
[357660911,1744291833513,-500.0,0.00016438,2]
[357660912,1744291833523,-500.0,0.00016438,2]
[357660913,1744291833536,-500.0,0.00016438,2]
[357660914,1744291833546,-500.0,0.00016438,2]
[357660915,1744291833560,-500.0,0.00016438,2]
[357660916,1744291833571,-500.0,0.00016438,2]
[357660917,1744291833583,-500.0,0.00016438,2]
[357660918,1744291833594,-500.0,0.00016438,2]
[357660919,1744291833605,-837.7,0.00016438,2]
[357660920,1744291833616,-500.0,0.00016438,2]
[357660921,1744291833628,-638.25,0.00016438,2]
[357660922,1744291833640,-500.0,0.00016438,2]
[357660923,1744291833651,-500.0,0.00016438,2]
[357660924,1744291833662,-1688.84,0.00016438,2]
[357660925,1744291833672,-642.77,0.00016438,2]
[357660926,1744291833683,-1689.46,0.00016438,2]
[357660927,1744291833694,-500.0,0.00016438,2]
[357660928,1744291833704,-500.0,0.00016438,2]
[357660929,1744291833715,-930.13,0.00016438,2]
[357660930,1744291833726,-500.0,0.00016438,2]
[357660931,1744291833738,-525.08,0.00016438,2]
[357660932,1744291833748,-807.06,0.00016438,2]
[357660933,1744291833758,-500.0,0.00016438,2]
[357660934,1744291833769,-500.0,0.00016438,2]
[357660935,1744291833779,-500.0,0.00016438,2]
[357660936,1744291833789,-1000.0,0.00016438,2]
[357660937,1744291833800,-500.0,0.00016438,2]
[357660938,1744291833810,-500.0,0.00016438,2]
[357660939,1744291833821,-500.0,0.00016438,2]
[357660940,1744291833832,-500.0,0.00016438,2]
[357660941,1744291833844,-710.68,0.00016438,2]
[357660942,1744291833854,-500.0,0.00016438,2]
[357660943,1744291833865,-209.91286022,0.00016438,2]
[357660944,1744291833875,-500.0,0.00016438,2]
[357660945,1744291833885,-500.0,0.00016438,2]
[357660946,1744291833896,-500.0,0.00016438,2]
[357660947,1744291833906,-500.0,0.00016438,2]
[357660948,1744291833916,-500.0,0.00016438,2]
[357660949,1744291833925,-877.08,0.00016438,2]
[357660950,1744291833936,-527.83,0.00016438,2]
[357660951,1744291833946,-500.0,0.00016438,2]
[357660952,1744291833956,-500.0,0.00016438,2]
[357660953,1744291833966,-500.0,0.00016438,2]
[357660954,1744291833977,-500.0,0.00016438,2]
[357660955,1744291833988,-601.50775896,0.00016438,2]
[357660956,1744291833999,-500.0,0.00016438,2]
[357660957,1744291834009,-299.13831048,0.00016438,2]
[357660958,1744291834019,-166.608178,0.00016438,2]
[357660959,1744291834029,-500.0,0.00016438,2]
[357660960,1744291834040,-1425.39,0.00016438,2]
[357660961,1744291834050,-500.0,0.00016438,2]
[357660962,1744291834060,-500.0,0.00016438,2]
[357660963,1744291834071,-500.0,0.00016438,2]
[357660964,1744291834082,-500.0,0.00016438,2]
[357660965,1744291834092,-500.0,0.00016438,2]
[357660966,1744291834103,-500.0,0.00016438,2]
[357660967,1744291834257,-500.0,0.00016438,2]
[357660968,1744291834342,-500.0,0.00016438,2]
[357660969,1744291834355,-500.0,0.00016438,2]
[357660970,1744291834369,-500.0,0.00016438,2]
[357660971,1744291834381,-500.0,0.00016438,2]
[357660972,1744291834391,-500.0,0.00016438,2]
[357660973,1744291834402,-1004.19,0.00016438,2]
[357660974,1744291834413,-500.0,0.00016438,2]
[357660975,1744291834423,-500.0,0.00016438,2]
[357660976,1744291834433,-500.0,0.00016438,2]
[357660977,1744291834444,-500.0,0.00016438,2]
[357660978,1744291834454,-500.0,0.00016438,2]
[357660979,1744291834464,-500.0,0.00016438,2]
[357660980,1744291834475,-500.0,0.00016438,2]
[357660981,1744291834486,-500.0,0.00016438,2]
[357660982,1744291834497,-500.0,0.00016438,2]
[357660983,1744291834507,-500.0,0.00016438,2]
[357660984,1744291834517,-397.95078276,0.00016438,2]
[357660985,1744291834538,-102.04921724,0.00016438,2]
[357660986,1744291834548,-322.49153383,0.00016438,2]
[357661133,1744291843233,-468.668,0.00016164,2]
[357661134,1744291843248,-200.0,0.00016428,2]
[357661135,1744291843257,-177.50846617,0.00016438,2]
[357661136,1744291843267,-500.0,0.00016438,2]
[357661137,1744291843276,-500.0,0.00016438,2]
[357661138,1744291843286,-500.0,0.00016438,2]
[357661139,1744291843296,-500.0,0.00016438,2]
[357661140,1744291843306,-500.0,0.00016438,2]
[357661141,1744291843316,-500.0,0.00016438,2]
[357661142,1744291843326,-500.2246179,0.00016438,2]
[357661143,1744291843335,-238.44,0.00016438,2]
[357661144,1744291843345,-500.0,0.00016438,2]
[357661145,1744291843355,-500.0,0.00016438,2]
[357661146,1744291843365,-500.0,0.00016438,2]
[357661147,1744291843375,-500.0,0.00016438,2]
[357661148,1744291843384,-500.0,0.00016438,2]
[357661149,1744291843394,-500.72,0.00016438,2]
[357661150,1744291843403,-500.0,0.00016438,2]
[357661151,1744291843413,-500.0,0.00016438,2]
[357661152,1744291843422,-500.0,0.00016438,2]
[357661153,1744291843431,-500.0,0.00016438,2]
[357661154,1744291843441,-886.17,0.00016438,2]
[357661155,1744291843452,-500.0,0.00016438,2]
[357661156,1744291843462,-500.0,0.00016438,2]
[357661157,1744291843472,-172.0,0.00016438,2]
[357661158,1744291843482,-500.0,0.00016438,2]
[357661159,1744291843493,-500.0,0.00016438,2]
[357661160,1744291843503,-475.73788725,0.00016438,2]
[357661174,1744291846375,-250.0,0.00015112,2]
[357661175,1744291846385,-543.0,0.00016164,2]
[357661176,1744291846395,-24.26211275,0.00016438,2]
[357661177,1744291846404,-780.38,0.00016438,2]
[357661178,1744291846414,-500.0,0.00016438,2]
[357661179,1744291846423,-1035.87,0.00016438,2]
[357661181,1744291846433,-632.6,0.00016438,2]
[357661182,1744291846443,-500.0,0.00016438,2]
[357661184,1744291846453,-500.0,0.00016438,2]
[357661185,1744291846463,-500.0,0.00016438,2]
[357661186,1744291846473,-500.0,0.00016438,2]
[357661187,1744291846482,-500.0,0.00016438,2]
[357661188,1744291846494,-500.0,0.00016438,2]
[357661189,1744291846503,-546.1,0.00016438,2]
[357661190,1744291846513,-501.98207331,0.00016438,2]
[357661191,1744291846522,-498.13094987,0.00016438,2]
[357661192,1744291846532,-610.73,0.00016438,2]
[357661193,1744291846541,-1253.13,0.00016438,2]
[357661194,1744291846552,-752.07,0.00016438,2]
[357661195,1744291846562,-371.74486407,0.00016438,2]
[357661196,1744291846581,-144.82513593,0.00016438,2]
[357661197,1744291846590,-500.0,0.00016438,2]
[357661198,1744291846600,-494.00532848,0.00016438,2]
[357661199,1744291846609,-500.0,0.00016438,2]
[357661200,1744291846619,-500.0,0.00016438,2]
[357661201,1744291846629,-500.0,0.00016438,2]
[357661202,1744291846639,-500.0,0.00016438,2]
[357661203,1744291846648,-500.0,0.00016438,2]
[357661204,1744291846658,-500.0,0.00016438,2]
[357661205,1744291846668,-500.0,0.00016438,2]
[357661206,1744291846677,-500.0,0.00016438,2]
[357661207,1744291846687,-332.24869264,0.00016438,2]
[357661208,1744291846697,-500.0,0.00016438,2]
[357661209,1744291846707,-726.46,0.00016438,2]
[357661210,1744291846717,-500.0,0.00016438,2]
[357661211,1744291846727,-500.0,0.00016438,2]
[357661212,1744291846737,-500.0,0.00016438,2]
[357661213,1744291846752,-502.30445726,0.00016438,2]
[357661214,1744291846762,-567.71066783,0.00016438,2]
[357661215,1744291846773,-500.0,0.00016438,2]
[357661216,1744291846784,-729.28,0.00016438,2]
[357661217,1744291846795,-500.0,0.00016438,2]
[357661218,1744291846805,-500.0,0.00016438,2]
[357661219,1744291846815,-155.92501491,0.00016438,2]
[357661220,1744291846826,-278.94256482,0.00016438,2]
[357661221,1744291846837,-546.26,0.00016438,2]
[357661222,1744291846848,-500.0,0.00016438,2]
[357661223,1744291846859,-500.0,0.00016438,2]
[357661224,1744291847000,-500.0,0.00016438,2]
[357661225,1744291847043,-500.0,0.00016438,2]
[357661226,1744291847054,-500.0,0.00016438,2]
[357661227,1744291847064,-500.0,0.00016438,2]
[357661228,1744291847074,-500.0,0.00016438,2]
[357661229,1744291847083,-646.95,0.00016438,2]
[357661230,1744291847093,-500.0,0.00016438,2]
[357661231,1744291847104,-1103.11,0.00016438,2]
[357661232,1744291847113,-500.0,0.00016438,2]
[357661233,1744291847123,-500.0,0.00016438,2]
[357661234,1744291847133,-500.0,0.00016438,2]
[357661235,1744291847142,-500.0,0.00016438,2]
[357661236,1744291847152,-500.0,0.00016438,2]
[357661237,1744291847162,-500.0,0.00016438,2]
[357661238,1744291847171,-500.0,0.00016438,2]
[357661239,1744291847182,-1999.87,0.00016438,2]
[357661240,1744291847192,-500.0,0.00016438,2]
[357661241,1744291847201,-500.0,0.00016438,2]
[357661242,1744291847211,-2910.35,0.00016438,2]
[357661243,1744291847220,-500.0,0.00016438,2]
[357661244,1744291847230,-798.15,0.00016438,2]
[357661245,1744291847239,-500.0,0.00016438,2]
[357661246,1744291847251,-500.0,0.00016438,2]
[357661247,1744291847261,-500.0,0.00016438,2]
[357661248,1744291847271,-500.0,0.00016438,2]
[357661249,1744291847280,-500.0,0.00016438,2]
[357661250,1744291847289,-500.0,0.00016438,2]
[357661251,1744291847299,-695.04,0.00016438,2]
[357661252,1744291847309,-129.36813813,0.00016438,2]
[357661253,1744291847772,-370.63186187,0.00016438,2]
[357661254,1744291847782,-515.98,0.00016438,2]
[357661255,1744291847792,-500.0,0.00016438,2]
[357661256,1744291847802,-658.8,0.00016438,2]
[357661257,1744291847811,-500.0,0.00016438,2]
[357661258,1744291847821,-500.0,0.00016438,2]
[357661259,1744291847831,-500.0,0.00016438,2]
[357661260,1744291847840,-1047.01,0.00016438,2]
[357661261,1744291847849,-918.47,0.00016438,2]
[357661262,1744291847858,-500.0,0.00016438,2]
[357661263,1744291847868,-500.0,0.00016438,2]
[357661264,1744291847878,-500.0,0.00016438,2]
[357661265,1744291847888,-674.87,0.00016438,2]
[357661266,1744291847898,-500.0,0.00016438,2]
[357661267,1744291847908,-534.80817559,0.00016438,2]
[357661268,1744291847918,-500.0,0.00016438,2]
[357661269,1744291847928,-500.0,0.00016438,2]
[357661270,1744291847938,-565.28262756,0.00016438,2]
[357661271,1744291847948,-500.0,0.00016438,2]
[357661272,1744291847958,-877.61,0.00016438,2]
[357661273,1744291847969,-500.0,0.00016438,2]
[357661274,1744291847979,-500.0,0.00016438,2]
[357661275,1744291847989,-500.0,0.00016438,2]
[357661276,1744291848000,-818.68,0.00016438,2]
[357661277,1744291848010,-300.0,0.00016438,2]
[357661278,1744291848019,-500.0,0.00016438,2]
[357661279,1744291848029,-500.0,0.00016438,2]
[357661280,1744291848040,-500.0,0.00016438,2]
[357661281,1744291848051,-1371.58,0.00016438,2]
[357661282,1744291848061,-959.88,0.00016438,2]
[357661283,1744291848072,-1030.0,0.00016438,2]
[357661284,1744291848083,-500.0,0.00016438,2]
[357661285,1744291848092,-500.0,0.00016438,2]
[357661286,1744291848101,-500.0,0.00016438,2]
[357661287,1744291848111,-907.98,0.00016438,2]
[357661288,1744291848120,-500.0,0.00016438,2]
[357661289,1744291848129,-1448.98,0.00016438,2]
[357661290,1744291848139,-500.0,0.00016438,2]
[357661291,1744291848149,-500.0,0.00016438,2]
[357661292,1744291848159,-500.0,0.00016438,2]
[357661293,1744291848168,-500.0,0.00016438,2]
[357661294,1744291848178,-500.0,0.00016438,2]
[357661295,1744291848187,-500.0,0.00016438,2]
[357661296,1744291848198,-500.0,0.00016438,2]
[357661297,1744291848208,-500.0,0.00016438,2]
[357661298,1744291848218,-1165.57,0.00016438,2]
[357661299,1744291848228,-1015.1,0.00016438,2]
[357661300,1744291848238,-500.0,0.00016438,2]
[357661301,1744291848251,-746.71,0.00016438,2]
[357661302,1744291848261,-500.0,0.00016438,2]
[357661303,1744291848271,-940.89,0.00016438,2]
[357661304,1744291848281,-597.63706154,0.00016438,2]
[357661305,1744291848291,-500.0,0.00016438,2]
[357661306,1744291848302,-500.0,0.00016438,2]
[357661307,1744291848311,-500.0,0.00016438,2]
[357661308,1744291848321,-500.0,0.00016438,2]
[357661309,1744291848331,-500.0,0.00016438,2]
[357661310,1744291848340,-500.0,0.00016438,2]
[357661311,1744291848350,-1538.99,0.00016438,2]
[357661312,1744291848360,-500.0,0.00016438,2]
[357661313,1744291848370,-500.0,0.00016438,2]
[357661314,1744291848380,-571.01338572,0.00016438,2]
[357661315,1744291848390,-500.0,0.00016438,2]
[357661316,1744291848400,-500.0,0.00016438,2]
[357661317,1744291848410,-500.0,0.00016438,2]
[357661318,1744291848420,-500.0,0.00016438,2]
[357661319,1744291848431,-500.0,0.00016438,2]
[357661320,1744291848441,-828.17,0.00016438,2]
[357661321,1744291848451,-500.0,0.00016438,2]
[357661322,1744291848462,-500.0,0.00016438,2]
[357661323,1744291848472,-180.58648517,0.00016438,2]
[357661324,1744291848481,-682.2,0.00016438,2]
[357661325,1744291848491,-500.0,0.00016438,2]
[357661326,1744291848501,-500.0,0.00016438,2]
[357661327,1744291848511,-500.0,0.00016438,2]
[357661328,1744291848521,-500.0,0.00016438,2]
[357661329,1744291848531,-500.0,0.00016438,2]
[357661330,1744291848549,-500.0,0.00016438,2]
[357661331,1744291848558,-500.0,0.00016438,2]
[357661332,1744291848568,-500.0,0.00016438,2]
[357661333,1744291848578,-224.98317668,0.00016438,2]
[357661334,1744291848587,-500.0,0.00016438,2]
[357661335,1744291848597,-1295.4,0.00016438,2]
[357661336,1744291848607,-500.0,0.00016438,2]
[357661337,1744291848618,-500.0,0.00016438,2]
[357661338,1744291848629,-1316.49,0.00016438,2]
[357661339,1744291848639,-500.0,0.00016438,2]
[357661340,1744291848649,-500.0,0.00016438,2]
[357661341,1744291848659,-500.0,0.00016438,2]
[357661342,1744291848669,-500.0,0.00016438,2]
[357661343,1744291848679,-620.15,0.00016438,2]
[357661344,1744291848689,-500.0,0.00016438,2]
[357661345,1744291848700,-609.49,0.00016438,2]
[357661346,1744291848711,-3841.87,0.00016438,2]
[357661347,1744291848721,-500.0,0.00016438,2]
[357661348,1744291848732,-1372.48,0.00016438,2]
[357661349,1744291848900,-500.0,0.00016438,2]
[357661350,1744291848912,-257.36404417,0.00016438,2]
[357661351,1744291848922,-500.0,0.00016438,2]
[357661352,1744291848932,-711.65,0.00016438,2]
[357661353,1744291848942,-500.0,0.00016438,2]
[357661354,1744291848954,-501.7051453,0.00016438,2]
[357661355,1744291848964,-500.0,0.00016438,2]
[357661356,1744291848975,-500.0,0.00016438,2]
[357661357,1744291848985,-1475.99,0.00016438,2]
[357661358,1744291848996,-520.92,0.00016438,2]
[357661359,1744291849008,-500.0,0.00016438,2]
[357661360,1744291849018,-500.0,0.00016438,2]
[357661361,1744291849028,-500.0,0.00016438,2]
[357661362,1744291849038,-557.24,0.00016438,2]
[357661363,1744291849047,-1203.61,0.00016438,2]
[357661364,1744291849057,-1533.9,0.00016438,2]
[357661365,1744291849067,-551.44,0.00016438,2]
[357661366,1744291849077,-500.0,0.00016438,2]
[357661367,1744291849087,-1976.15,0.00016438,2]